Cogmind - Beta 15 @@@ ROGUE MODE // 2025.09.12 @ 10:46:22 Player: beans Result: Destroyed by X-62 Marksman with Pulse Rifle Performance ------------- Evolutions (2) 1000 Regions Visited (4) 800 Robots Destroyed (21) 105 Value Destroyed (613) 613 Prototype IDs (0) 0 Alien Tech Used (0) 0 Bonus (0) 0 TOTAL SCORE: 2518 Bonus ------- None Cogmind --------- Core Integrity 0/550 Matter 356/450 Energy 81/100 System Corruption 1% Temperature Cool (9) Movement Core (150) Ox2 Location -8/Materials Parts ------- > --- POWER (2) -------- (None) > --- PROPULSION (3) --- (None) > --- UTILITY (3) ------ Compact Matter Pod Armor Integrity Analyzer > --- WEAPON (3) ------- Gauss Rifle Gauss Rifle > --- INVENTORY (5) ---- Airjet Heat Sink High-capacity Matter Pod (200) Sensor Array Peak State ------------ > --- POWER ------------ Ion Engine > --- PROPULSION ------- Airjet Airjet Airjet > --- UTILITY ---------- Compact Matter Pod Sensor Array Armor Integrity Analyzer > --- WEAPON ----------- Pulse Rifle Ion Cannon Light Assault Rifle > --- INVENTORY -------- Heat Sink High-capacity Matter Pod Particle Charger [Rating: 25] Favorites ----------- Power Light Ion Engine Engine Light Ion Engine Propulsion Airjet Leg Aluminum Leg Hover Unit Airjet Utility Sensor Array Device Sensor Array Storage Compact Matter Pod Processor Armor Integrity Analyzer Weapon Light Assault Rifle Energy Gun Shock Rifle Energy Cannon Ion Cannon Ballistic Gun Light Assault Rifle Build | -11 -10 -9 -9 -8 ------- Run | Yrd Mat Mat Min Mat Slots Evolved 4 | . . 2 . 2 Power 1 | . . . . 1 Propulsion 1 | . . . . 1 Utility 1 | . . 1 . . Weapon 1 | . . 1 . . Parts Attached 29 | 5 4 4 7 9 Power 3 | 1 . . 2 . Engine 3 | 1 . . 2 . Core . | . . . . . Reactor . | . . . . . Propulsion 8 | 2 2 2 . 2 Treads . | . . . . . Leg 4 | 2 2 . . . Wheel . | . . . . . Hover 4 | . . 2 . 2 Flight . | . . . . . Utility 5 | . 2 . 2 1 Device 3 | . 2 . . 1 Storage 1 | . . . 1 . Processor 1 | . . . 1 . Hackware . | . . . . . Protection . | . . . . . Artifact . | . . . . . Weapon 13 | 2 . 2 3 6 Energy Gun 4 | . . 2 1 1 Energy Cannon 1 | . . . . 1 Ballistic Gun 8 | 2 . . 2 4 Ballistic Cannon . | . . . . . Launcher . | . . . . . Special Weapon . | . . . . . Impact Weapon . | . . . . . Slashing Weapon . | . . . . . Piercing Weapon . | . . . . . Special Melee Weapon . | . . . . . Unidentified Prototypes . | . . . . . Parts Lost 15 | . 4 . 1 10 Power 2 | . 1 . . 1 Propulsion 5 | . 2 . . 3 Utility 1 | . . . . 1 Weapon 7 | . 1 . 1 5 Highest Loss Streak 6 | . 4 . 1 6 To Critical Strikes . | . . . . . Average Backups 3 | . 1 1 4 4 Power . | . . . . . Propulsion 1 | . 1 1 2 . Utility 1 | . . . 1 2 Weapon . | . . . 1 . Tool/Special . | . . . . . Unused Backups 4 | . 2 . . 2 Power . | . . . . . Propulsion 2 | . 2 . . . Utility 2 | . . . . 2 Weapon . | . . . . . Tool/Special . | . . . . . Average Slot Usage (%) 75 | . 77 63 86 69 Engine 7 | . 11 . 9 7 Leg 6 | . 25 5 . . Hover 13 | . . 14 22 13 Device 15 | . 14 22 21 7 Storage 6 | . . . 10 9 Processor 3 | . . . . 9 Energy Gun 7 | . . 15 10 7 Energy Cannon 1 | . . . . 4 Ballistic Gun 13 | . 25 5 12 11 Peak Build Rating 25 | 5 6 15 21 25 Average Rating 13 | 4 5 11 16 19 On Entrance 9 | . 5 5 14 21 Naked Turns . | . . . . . Heaviest Build 17 | 5 6 8 12 17 Greatest Support 24 | 20 20 20 16 24 Greatest Overweight (x) 2 | . . . . 2 Average Overweight (x) . | . . . . . Largest Inventory Capacity 5 | 5 5 5 5 5 Average Capacity 5 | 5 5 5 5 5 Most Carried 5 | 3 5 3 5 5 Average Carried 3 | . 1 2 4 4 Final Capacity 5 | 5 5 5 5 5 Final Carried 5 | 2 . 3 5 4 Class Distribution -------------------- 60% | Mutant 16% | Gunner 16% | Scavenger-Mutant 6% | Scavenger-Gunner Dominant Class ---------------- Mutant | -10/Materials Mutant | -9/Materials Scavenger-Mutant | -9/Mines Gunner | -8/Materials Resources | -11 -10 -9 -9 -8 ----------- Run | Yrd Mat Mat Min Mat Matter Collected 506 | 175 115 60 112 44 Remotely . | . . . . . Salvage Created 789 | . 252 60 214 263 Parts 48 | . 15 3 16 14 Haulers Intercepted . | . . . . . Recyclers Shooed . | . . . . . Parts Field Recycled . | . . . . . Retrieved Matter . | . . . . . Parts Self-Destructed . | . . . . . Prevented . | . . . . . Kills | -11 -10 -9 -9 -8 ------- Run | Yrd Mat Mat Min Mat Combat Hostiles Destroyed 15 | . 5 1 4 5 Guns 14 | . 5 1 4 4 Cannons 1 | . . . . 1 Classes Destroyed 10 | . 3 1 3 3 Worker 1 | . 1 . . . Tunneler 2 | . . . 2 . Recycler 1 | . . . 1 . Operator 1 | . . . . 1 Watcher 1 | . 1 . . . Swarmer 3 | . . . 3 . Grunt 8 | . 5 . 1 2 Duelist 1 | . . . . 1 Sentry 2 | . . 1 . 1 Specialist 1 | . . . . 1 Best Kill Streak 5 | . 5 1 3 4 Combat Bots Only 4 | . 3 1 3 4 Max Kills in Single Turn 1 | . 1 1 1 1 Gunslinging . | . . . . . Exploded . | . . . . . Melee . | . . . . . Uniques/NPCs Destroyed . | . . . . . Combat | -11 -10 -9 -9 -8 -------- Run | Yrd Mat Mat Min Mat Hostile Shots Fired 173 | . 32 25 22 94 Missed 40 | . 4 12 9 15 Hits 133 | . 28 13 13 79 Melee 3 | . . . 1 2 Projectile 130 | . 28 13 12 77 AOE 1 | . 1 . . . Critical Strikes 5 | . . 1 . 4 Damage Taken 2122 | . 410 162 128 1422 Core 682 | . 36 41 49 556 Absorbed by Shields . | . . . . . Core Remaining (%) 87 | 100 85 . 77 . Volleys Fired 107 | . 31 5 26 45 Largest 3 | . 2 2 3 3 Hottest 143 | . 40 70 90 143 Shots Fired 172 | . 49 8 37 78 Gun 148 | . 49 8 37 54 Cannon 24 | . . . . 24 Launcher . | . . . . . Special . | . . . . . Kinetic 109 | . 49 3 20 37 Thermal 40 | . . . . 40 Explosive . | . . . . . Electromagnetic 23 | . . 5 17 1 Robot Hit Streak 14 | . 9 5 6 14 Robot Miss Streak 5 | . 5 1 3 2 Penetration Max . | . . . . . Secondary Targets . | . . . . . Shots Hit Robots 99 | . 31 6 21 41 Core Hits 49 | . 16 3 12 18 Critical Kills 3 | . 2 . 1 . Critical Parts Destroyed . | . . . . . Critical Strikes 3 | . 2 . 1 . Destroy 3 | . 2 . 1 . Melee Attacks . | . . . . . Impact . | . . . . . Slashing . | . . . . . Piercing . | . . . . . Sneak Attacks . | . . . . . Combat Hostiles . | . . . . . Follow-up Attacks . | . . . . . Damage Inflicted 1314 | . 265 87 282 680 Guns 1202 | . 265 87 245 605 Cannons 68 | . . . . 68 Explosions 37 | . . . 37 . Melee . | . . . . . Ramming 7 | . . . . 7 Kinetic 724 | . 265 16 84 359 Thermal 327 | . . . 37 290 Explosive . | . . . . . Electromagnetic 256 | . . 71 161 24 Impact . | . . . . . Slashing . | . . . . . Piercing . | . . . . . Highest Corruption 1 | . . . . 1 Average Corruption 1 | . . . . 1 Corruption Purged . | . . . . . Corruption Blocked . | . . . . . Overload Shots . | . . . . . Overflow Damage . | . . . . . Projectiles . | . . . . . Explosions . | . . . . . Melee . | . . . . . Knockbacks . | . . . . . Impact . | . . . . . Kinetic . | . . . . . Secondary . | . . . . . Self-Inflicted Damage 3 | . . . . 3 Shots . | . . . . . Rammed 5 | . . . . 5 Targets Rammed 5 | . . . . 5 Kicked . | . . . . . Crushed . | . . . . . Highest Temperature 319 | . 18 11 90 319 Average Temperature 77 | . 6 7 41 104 Received Heat Transfer 768 | . 168 78 . 522 Siege Activations . | . . . . . Martial Activations . | . . . . . Shielding Activations . | . . . . . Robots Disrupted . | . . . . . Combat Hostiles . | . . . . . Robots Corrupted . | . . . . . Combat Hostiles . | . . . . . Parts Fried . | . . . . . Impact Corruptions . | . . . . . Robots Melted . | . . . . . Combat Hostiles . | . . . . . Parts Melted 1 | . . . . 1 Heat Transferred 605 | . . . 50 555 Parts Sabotaged . | . . . . . Parts Stolen . | . . . . . Parts Stripped . | . . . . . Power Chain Reactions 1 | . . . 1 . Alert | -11 -10 -9 -9 -8 ------- Run | Yrd Mat Mat Min Mat Maximum Alert Level . | . . . . . Low Security (%) 100 | 100 100 100 100 100 Level 1 . | . . . . . Level 2 . | . . . . . Level 3 . | . . . . . Level 4 . | . . . . . Level 5 . | . . . . . High Security . | . . . . . Max Security . | . . . . . Peak Influence 61 | . 57 30 60 61 Initial 23 | . . 8 . 23 Average 15 | . 20 7 15 19 Influence Increases 450 | . 132 30 145 143 Destroy 0b10 Robot/C 300 | . 100 20 80 100 Destroy 0b10 Robot/NC 30 | . 10 . 15 5 Destroy Leader 72 | . 22 10 20 20 Disable Machine 30 | . . . 30 . Destroy Structure 3 | . . . . 3 Lose Combat Pursuer 15 | . . . . 15 Influence Decreases 445 | . 112 50 85 198 Entered New Map 49 | . . 12 . 37 Time Decay 286 | . 72 38 55 121 Lost Part 80 | . 40 . . 40 Lost Ally 30 | . . . 30 . Squads Dispatched 6 | . 2 2 . 2 Investigation 1 | . . . . 1 Extermination . | . . . . . Reinforcement 5 | . 2 2 . 1 Assault . | . . . . . Garrison . | . . . . . Intercept . | . . . . . Searches Triggered . | . . . . . Construction Impeded . | . . . . . Haulers Reinforced . | . . . . . Active Scanning Responses . | . . . . . Cargo Convoy Interrupts . | . . . . . Stealth | -11 -10 -9 -9 -8 --------- Run | Yrd Mat Mat Min Mat Distress Signals 1 | . 1 . . . Communications Jammed . | . . . . . Distress Signals . | . . . . . Times Spotted 42 | . 8 12 6 16 Peak Tracking Total 8 | . 2 8 3 7 Tactical Retreats 2 | . . . 1 1 Traps | -11 -10 -9 -9 -8 ------- Run | Yrd Mat Mat Min Mat Traps Triggered . | . . . . . Indirectly . | . . . . . Trap Hack Attempts . | . . . . . Triggered . | . . . . . Disarmed . | . . . . . Reprogrammed . | . . . . . Reused . | . . . . . Traps Extracted . | . . . . . Installed . | . . . . . Triggered . | . . . . . Machines | -11 -10 -9 -9 -8 ---------- Run | Yrd Mat Mat Min Mat Machines Disabled 2 | . . . 2 . Max in Single Turn 1 | . . . 1 . Machines Repaired . | . . . . . Machines Dismantled . | . . . . . Machines Sabotaged . | . . . . . Overloaded Fab Kills . | . . . . . Hacking | -11 -10 -9 -9 -8 --------- Run | Yrd Mat Mat Min Mat Machines Accessed 3 | . 1 . . 2 Terminals 2 | . 1 . . 1 Fabricators . | . . . . . Repair Stations . | . . . . . Recycling Units 1 | . . . . 1 Scanalyzers . | . . . . . Garrison Access . | . . . . . Total Hacks 7 | . 1 . . 6 Successful 4 | . . . . 4 Failed 3 | . 1 . . 2 Catastrophic . | . . . . . Database Lockouts . | . . . . . Manual 1 | . 1 . . . Terminals 4 | . 1 . . 3 Fabricators . | . . . . . Repair Stations . | . . . . . Recycling Units 3 | . . . . 3 Scanalyzers . | . . . . . Garrison Access . | . . . . . Terminal Hacks 2 | . . . . 2 Record 2 | . . . . 2 Fabricator Hacks . | . . . . . Repair Station Hacks . | . . . . . Recycling Unit Hacks 2 | . . . . 2 Report Inventory 1 | . . . . 1 Retrieve Components 1 | . . . . 1 Scanalyzer . | . . . . . Garrison Access Hacks . | . . . . . Unauthorized Hacks . | . . . . . Terminals . | . . . . . Fabricators . | . . . . . Repair Stations . | . . . . . Recycling Units . | . . . . . Scanalyzers . | . . . . . Garrison Access . | . . . . . Data Cores Recovered 1 | . . . . 1 Used . | . . . . . Hacking Detections 1 | . . . . 1 Full Trace Events 1 | . . . . 1 Feedback Events . | . . . . . Feedback Blocked . | . . . . . Robot Schematics Acquired . | . . . . . Robots Built . | . . . . . Authchips . | . . . . . Time . | . . . . . Total Robot Build Rating . | . . . . . Part Schematics Acquired . | . . . . . Parts Built . | . . . . . Authchips . | . . . . . Time . | . . . . . Total Part Build Rating . | . . . . . Parts Repaired . | . . . . . Time . | . . . . . Parts Recycled . | . . . . . Recycled Matter . | . . . . . Retrieved Matter . | . . . . . Retrieved Components 3 | . . . . 3 Parts Scanalyzed . | . . . . . Part Schematics Acquired . | . . . . . Parts Damaged . | . . . . . Bothacking | -11 -10 -9 -9 -8 ------------ Run | Yrd Mat Mat Min Mat Used RIF Installer . | . . . . . Robots Hacked . | . . . . . Non-combat . | . . . . . Combat . | . . . . . Robot Hacks Applied . | . . . . . Relay Couplers Released . | . . . . . Fabnet Peak Effective % . | . . . . . Robots Rewired . | . . . . . Allies Hacked . | . . . . . Hacks Repelled . | . . . . . Allies | -11 -10 -9 -9 -8 -------- Run | Yrd Mat Mat Min Mat Total Allies 3 | . . . 3 . Largest Group 3 | . . . 3 . Highest-Rated Group 40 | . . . 40 . Highest-Rated Ally 16 | . . . 16 . Total Orders . | . . . . . Ally Attacks 27 | . . . 27 . Total Damage 196 | . . . 196 . Kills 3 | . . . 3 . Allies Corrupted . | . . . . . Allies Melted . | . . . . . Intel | -11 -10 -9 -9 -8 ------- Run | Yrd Mat Mat Min Mat Active Infowar (turns) 794 | . 222 91 241 240 Sensors 794 | . 222 91 241 240 Robot Analysis Total . | . . . . . Derelict Logs Recovered 1 | . . . 1 . Drone Launches . | . . . . . Drone Recoveries . | . . . . . Exploration | -11 -10 -9 -9 -8 ------------- Run | Yrd Mat Mat Min Mat Turns Passed 1127 | 78 231 147 337 334 Spaces Moved 933 | 61 122 136 421 193 Core 60 | 9 6 . . 45 Treads . | . . . . . Legs 185 | 52 116 17 . . Wheels . | . . . . . Hover 688 | . . 119 421 148 Flight . | . . . . . Fastest Speed 50 | 50 50 56 56 50 Average Speed 74 | 109 116 64 56 85 Slowest Speed 180 | 120 120 120 56 180 Overloaded Moves . | . . . . . Propulsion Burnouts . | . . . . . Robots Hopped . | . . . . . Potential Cave-ins 9 | . . . . 9 Cave-ins Triggered . | . . . . . Exploration Rate (%) 28 | 5 28 16 79 13 Regions Visited 4 Branch Regions 1 Pre-discovered Areas 1 | . . . 1 . Known Exits Taken . | . . . . . Unknown Exits Taken 4 | 1 1 1 1 . Scrap Searched 2 | . . . 2 . Spaces Dug 5 | . . . . 5 Terrain Destroyed 16 | . . . . 16 Melee . | . . . . . Projectile 16 | . . . . 16 AOE . | . . . . . Terrain Rammed . | . . . . . Walls Destroyed . | . . . . . Machines Disabled . | . . . . . Actions | -11 -10 -9 -9 -8 --------- Run | Yrd Mat Mat Min Mat Total 1218 | 72 172 188 492 294 Wait 107 | . 10 34 31 32 Move 929 | 60 121 135 420 193 Hop . | . . . . . Pick Up 30 | 7 4 7 6 6 Fast Attach 2 | . . . . 2 Attach 22 | 5 4 3 5 5 Detach 2 | . . . 1 1 Swap 5 | . . 1 2 2 Drop 9 | . 2 3 1 3 Fire 107 | . 31 5 26 45 Melee . | . . . . . Ram 5 | . . . . 5 Kick . | . . . . . Crush . | . . . . . Escape Stasis . | . . . . . Rewire . | . . . . . Trap . | . . . . . Miscellaneous . | . . . . . Route ------- -11/Scrapyard -10/Materials -9/Materials -9/Mines -8/Materials History --------- Turn | Location | Event 2 | -11/Scrapyard | Met Revision 17 3 | -11/Scrapyard | Discovered new exit (range 15) 79 | -11/Scrapyard | Entered Materials 248 | -10/Materials | Discovered new exit (range 14) 303 | -10/Materials | Lost 4 parts (1p2n1w) 310 | -10/Materials | Entered another Materials area 310 | -9/Materials | Evolved 2 slots: Utility x1, Weapon x1 316 | -9/Materials | Build established: Mutant 455 | -9/Materials | Discovered new exit (range 5) 457 | -9/Materials | Entered Mines 608 | -9/Mines | Assembled infested the area 613 | -9/Mines | Assisted by a Guerilla fighting off Assembled 614 | -9/Mines | Learned location of Storage (-7) 635 | -9/Mines | Assisted by bots powering up and referring to "LRC-V3" 649 | -9/Mines | Found a hidden stash of uninstalled traps 764 | -9/Mines | Discovered new exit (range 7) 794 | -9/Mines | Entered Materials 794 | -8/Materials | Evolved 2 slots: Power x1, Propulsion x1 1078 | -8/Materials | Core integrity fell below 50% 1114 | -8/Materials | Lost 6 parts (1p1n1u3w) 1117 | -8/Materials | Core integrity fell below 20% 1128 | -8/Materials | Destroyed by X-62 Marksman with Pulse Rifle Last Messages --------------- Slammed into G-47 Trooper. Slammed into A-02 Transporter. Destabilizing: System corrupted (+1). Acquired Gauss Rifle. Slug penetrates G-47 Trooper. Slug penetrates Wall. Slug penetrates G-47 Trooper. Slug penetrates Wall. Slug penetrates G-47 Trooper. Slug penetrates Wall. Penetrated by Slug. Slug penetrates X-62 Marksman. X-62 Marksman destroyed. Slug penetrates X-62 Marksman. Gauss Rifle destroyed. Acquired Gauss Rifle. Slug penetrates X-62 Marksman. Slug penetrates Wall. C-30 ARC bursts open, deploying its payload. S-10 Pest unfolds itself. Map ----- +----------------------------------------------------+ | ?????????????????????????????????????????????????? | | ?????????????????????????????????????????????????? | | ?????????????????????????????????????????????????? | | ?????????????????????????????????????????????????? | | ?????????????????????????????????????????????????? | | ?????????????????????????????????????????????????? | | ?????????????????????????????????????????????????? | | ?????????????????????????????????????????????????? | | ?????????????????????????????????????????????????? | | ?????????????????????????????????????????????????? | | ?????????????????????????????????????????????????? | | ?????????????????????????????? ??????????????????? | | ????????????????????????????? #????????????????? | | ????????????????????????????? #????????????????? | | ????????????????????????????? #????????????????? | | ????????????????????????????# #????????????????? | | ????????????????????????????# #?????????######## | | ????????????????????????????# #???????# | | ????????????????????????????# #?????????##### ## | | ????????????????????????????# ######????????##?? | | ????????????????????????????# s # ###########?? | | ????????????????????????##### %s# + ### | | ????????????????????????#!! s # ! # # % | | ????????????????????????#!! # =%!# # | | ????????????????????????# + ! # """ + | | ????????????????????????#@ x # # """ # | | ????????????????????????#== # # """ # | | ????????????????????????#== g # # "T" ## | | ????????????????????????##### g # # ## | | ????????????????????????????# ##/#?###+######## | | ????????????????????????????# #???# #??????# | | ????????????????????????????+ #####%######## | | ????????????????????????????# %% % | | ????????????????????????????# ################# | | ????????????????????????????# #??????????????? | | ????????????????????????????##+##??????????????? | | ??????????????????????????????????????????????? | | ???????????????????????????????????????????????? | | ???????????????????????????????????????????????? | | ?????????????????????????????????????????????????? | | ?????????????????????????????????????????????????? | | ?????????????????????????????????????????????????? | | ?????????????????????????????????????????????????? | | ?????????????????????????????????????????????????? | | ?????????????????????????????????????????????????? | | ?????????????????????????????????????????????????? | | ?????????????????????????????????????????????????? | | ?????????????????????????????????????????????????? | | ?????????????????????????????????????????????????? | | ?????????????????????????????????????????????????? | +----------------------------------------------------+ Best States ------------- Heat Dissipation 38 Energy Generation 10 Energy Capacity 250 Matter Stores 450 Matter Capacity 450 Sight Range 16 Robot Scan Range 14 Terrain Scan Density 10 Evasion (%) 55 Armor Integrity Analysis 30 Particle Charging 15 Item Schematics ----------------- None Robot Schematics ------------------ None Fabricated ------------ Nothing Repaired ---------- Nothing Alien Tech Used ----------------- None Achievements -------------- None Challenges ------------ None Game ------ Seed BehemothStormHarness Manual? 0 Play Time 00:12:15 Cumulative 132.5 hours Start 2025.09.11 @ 20:50:17 End 2025.09.12 @ 10:46:22 Sessions 2 Manual Loads 0 Difficulty Rogue Special Mode None Game No. 457 Rogue 457 Adventurer 0 Explorer 0 Win Type - Total 0 Types 0/0/0/0/0/0/0/0/0/0 Lore% 51 Gallery% 48 Achievement% 35 Wizard Run 0 Options --------- Layout 2 ASCII 0 Keyboard 0 Movement Mouse Keybinds 0 Fullscreen 2 Font 24/Smallcaps Map View 50x44 Zoom Use 0% Tactical HUD 0 Map Filters NONE Filters NONE Steam 1 RUN: e00e957e-4e6d-49b2-9dd7-c92573cffc46